[Event "GER-ch Youth U18 2020"]
[Site "Willingen"]
[Date "2020.10.23"]
[Round "6.8"]
[White "Huber, Benedikt"]
[Black "Burian, Simon"]
[Result "1-0"]
[ECO "A57"]
[WhiteElo "2191"]
[BlackElo "2113"]
[Annotator "ChessBase"]
[PlyCount "91"]
[EventDate "2020.10.20"]
[EventType "swiss"]
[EventRounds "7"]
[EventCountry "GER"]
[SourceTitle "playchess.com"]
[Source "ChessBase"]
[SourceQuality "1"]
[TimeControl "40/5400+30:1800+30"]

1. d4 {[%emt 0:00:00]} Nf6 {[%emt 0:00:00]} 2. c4 {[%emt 0:00:00]} c5 {[%emt 0:00:00]} 3. d5 {[%emt 0:00:00]} b5 {[%emt 0:00:00]} 4. cxb5 {[%emt 0:00:00]} a6 {[%emt 0:00:00]} 5. Nc3 {[%emt 0:00:01]} axb5 {[%emt 0:00:04]} 6. e4 {[%emt 0:00:07]} b4 {[%emt 0:08:50]} 7. Nb5 {[%emt 0:00:02]} d6 {[%emt 0:02:53]} 8. a4 {[%emt 0:00:06]} bxa3 {[%emt 0:08:36]} 9. Rxa3 {[%emt 0:00:08]} Rxa3 {[%emt 0:00:04]} 10. bxa3 {[%emt 0:00:07]} g6 {[%emt 0:04:12]} 11. Qa4 {[%emt 0:00:08]} Bd7 {[%emt 0:03:44]} 12. Qa7 {[%emt 0:00:08]} Bg7 {[%emt 0:09:33]} 13. Nc7+ {[%emt 0:02:09]} Kf8 {[%emt 0:01:55]} 14. Bd3 {[%emt 0:03:41]} Ne8 {[%emt 0:05:20]} 15. Nxe8 {[%emt 0:01:11]} Bc3+ {[%emt 0:02:13]} 16. Bd2 {[%emt 0:06:23]} Bxd2+ {[%emt 0:00:38]} 17. Kxd2 {[%emt 0:00:02]} Qxe8 {[%emt 0:01:41]} 18. Nf3 {[%emt 0:00:35]} Kg7 {[%emt 0:00:48]} 19. Rb1 {[%emt 0:00:39]} Qc8 {[%emt 0:07:51]} 20. Rb7 {[%emt 0:03:32]} Re8 {[%emt 0:09:50]} 21. a4 {[%emt 0:02:05]} Bxa4 {[%emt 0:10:38]} 22. Rc7 {[%emt 0:20:30]} Qd8 {[%emt 0:00:28]} 23. Qxa4 {[%emt 0:00:09]} Qxc7 {[%emt 0:00:04]} 24. Qxe8 {[%emt 0:00:06]} c4 {[%emt 0:00:32]} 25. Bxc4 {[%emt 0:03:35]} Qxc4 {[%emt 0:00:10]} 26. Qxb8 {[%emt 0:00:06]} Qxe4 {[%emt 0:00:37]} 27. Qb2+ {[%emt 0:00:14]} Kg8 {[%emt 0:01:36]} 28. Qd4 {[%emt 0:00:04]} Qb1 {[%emt 0:01:05]} 29. h4 {[%emt 0:03:28]} f6 {[%emt 0:07:56]} 30. Ne1 {[%emt 0:02:05]} Qa2+ {[%emt 0:01:20]} 31. Ke3 {[%emt 0:01:03]} Kf7 {[%emt 0:01:12]} 32. Nd3 {[%emt 0:00:05]} Qb1 {[%emt 0:01:08]} 33. Qe4 {[%emt 0:00:49]} Qb6+ {[%emt 0:01:00]} 34. Kf3 {[%emt 0:01:27]} Kf8 {[%emt 0:01:24]} 35. Kg3 {[%emt 0:01:06]} Qb3 {[%emt 0:01:54]} 36. Kh2 {[%emt 0:01:09]} Qc2 {[%emt 0:01:29]} 37. g3 {[%emt 0:00:58]} Ke8 {[%emt 0:03:27]} 38. Qd4 {[%emt 0:00:34]} Qd2 {[%emt 0:00:39]} 39. Kg2 {[%emt 0:00:31]} h6 {[%emt 0:01:48]} 40. Qe3 {[%emt 0:02:57]} Qd1 {[%emt 0:00:21]} 41. Qe4 {[%emt 0:31:18]} g5 {[%emt 0:05:06]} 42. hxg5 {[%emt 0:00:00]} hxg5 {[%emt 0:00:11]} 43. Nb4 {[%emt 0:00:00]} Qb3 {[%emt 0:00:55]} 44. Nc6 {[%emt 0:00:00]} Qb7 {[%emt 0:00:05]} 45. Qe6 {[%emt 0:00:00]} Kf8 {[%emt 0:00:29]} 46. Nd8 {[%emt 0:00:00]} 1-0

[Event "GER-ch Youth U18 2020"]
[Site "Willingen"]
[Date "2020.10.23"]
[Round "6.10"]
[White "Papadopoulos, Ioannis"]
[Black "Lesny, Florian"]
[Result "0-1"]
[ECO "B90"]
[WhiteElo "2186"]
[BlackElo "2178"]
[Annotator "ChessBase"]
[PlyCount "100"]
[EventDate "2020.10.20"]
[EventType "swiss"]
[EventRounds "7"]
[EventCountry "GER"]
[SourceTitle "playchess.com"]
[Source "ChessBase"]
[SourceQuality "1"]
[TimeControl "40/5400+30:1800+30"]

1. e4 {[%emt 0:00:00]} c5 {[%emt 0:00:00]} 2. Nf3 {[%emt 0:00:00]} d6 {[%emt 0:00:00]} 3. d4 {[%emt 0:00:00]} cxd4 {[%emt 0:00:03]} 4. Nxd4 {[%emt 0:00:00]} Nf6 {[%emt 0:00:12]} 5. Nc3 {[%emt 0:00:00]} a6 {[%emt 0:00:16]} 6. a4 {[%emt 0:00:00]} g6 {[%emt 0:04:42]} 7. Be2 {[%emt 0:03:10]} Bg7 {[%emt 0:00:20]} 8. Be3 {[%emt 0:00:42]} O-O {[%emt 0:01:32]} 9. h4 {[%emt 0:05:10]} h5 {[%emt 0:03:49]} 10. Qd2 {[%emt 0:02:47]} Nc6 {[%emt 0:00:49]} 11. Nxc6 {[%emt 0:05:09]} bxc6 {[%emt 0:00:23]} 12. Bh6 {[%emt 0:04:00]} Rb8 {[%emt 0:06:04]} 13. Bxg7 {[%emt 0:00:06]} Kxg7 {[%emt 0:00:14]} 14. b3 {[%emt 0:00:28]} Qa5 {[%emt 0:05:58]} 15. f3 {[%emt 0:01:47]} e5 {[%emt 0:07:55]} 16. O-O-O {[%emt 0:03:20]} Be6 {[%emt 0:08:38]} 17. Nb1 {[%emt 0:03:26]} Qb6 {[%emt 0:01:12]} 18. a5 {[%emt 0:05:38]} Qa7 {[%emt 0:02:38]} 19. g4 {[%emt 0:13:25]} d5 {[%emt 0:03:53]} 20. Qg5 {[%emt 0:05:51]} Qc7 {[%emt 0:01:04]} 21. Rdg1 {[%emt 0:06:02]} Rh8 {[%emt 0:01:19]} 22. Nd2 hxg4 {[%emt 0:03:03]} 23. fxg4 {[%emt 0:18:53]} dxe4 {[%emt 0:00:46]} 24. h5 {[%emt 0:02:35]} Nh7 {[%emt 0:01:01]} 25. Qe3 {[%emt 0:03:23]} Qxa5 {[%emt 0:01:12]} 26. h6+ {[%emt 0:07:43]} Kf8 {[%emt 0:00:43]} 27. g5 {[%emt 0:04:54]} Rd8 {[%emt 0:03:00]} 28. Nb1 {[%emt 0:01:28]} Rd4 {[%emt 0:04:45]} 29. Rd1 {[%emt 0:01:16]} Ke7 {[%emt 0:01:10]} 30. Rxd4 {[%emt 0:00:42]} exd4 {[%emt 0:00:08]} 31. Qxd4 {[%emt 0:00:09]} Rd8 {[%emt 0:01:48]} 32. Qg7 {[%emt 0:00:21]} Qxg5+ 33. Kb2 {[%emt 0:00:15]} Qf6+ {[%emt 0:03:21]} 34. Nc3 {[%emt 0:00:14]} Qxg7 {[%emt 0:03:45]} 35. hxg7 {[%emt 0:00:05]} Nf6 {[%emt 0:00:14]} 36. Rh8 {[%emt 0:01:27]} Rg8 {[%emt 0:05:15]} 37. Rxg8 {[%emt 0:00:08]} Nxg8 {[%emt 0:00:17]} 38. Nxe4 {[%emt 0:00:02]} Bf5 {[%emt 0:07:19]} 39. Ng3 {[%emt 0:00:53]} Bc8 {[%emt 0:01:29]} 40. Kc3 {[%emt 0:01:05]} Kf6 {[%emt 0:00:49]} 41. Bf3 {[%emt 0:31:06]} Kxg7 {[%emt 0:36:07]} 42. Bxc6 {[%emt 0:00:01]} Ne7 {[%emt 0:00:53]} 43. Ba8 {[%emt 0:00:47]} Kf6 {[%emt 0:02:03]} 44. Kd4 {[%emt 0:01:08]} Nf5+ {[%emt 0:04:33]} 45. Nxf5 {[%emt 0:00:04]} Bxf5 {[%emt 0:01:07]} 46. c4 {[%emt 0:00:04]} a5 {[%emt 0:02:02]} 47. c5 {[%emt 0:02:18]} Be6 {[%emt 0:04:31]} 48. Bd5 {[%emt 0:00:17]} Ke7 {[%emt 0:00:00]} 49. Bxe6 {[%emt 0:00:00]} fxe6 {[%emt 0:00:00]} 50. Ke5 {[%emt 0:00:00]} Kd7 {[%emt 0:00:00]} 0-1

[Event "GER-ch Youth U18 2020"]
[Site "Willingen"]
[Date "2020.10.23"]
[Round "6.12"]
[White "Wong, Gengchun"]
[Black "Besancon, Pascal"]
[Result "1/2-1/2"]
[ECO "B97"]
[WhiteElo "2120"]
[BlackElo "1915"]
[Annotator "ChessBase"]
[PlyCount "75"]
[EventDate "2020.10.20"]
[EventType "swiss"]
[EventRounds "7"]
[EventCountry "GER"]
[SourceTitle "playchess.com"]
[Source "ChessBase"]
[SourceQuality "1"]
[TimeControl "40/5400+30:1800+30"]

1. e4 {[%emt 0:00:00]} c5 {[%emt 0:00:00]} 2. Nf3 {[%emt 0:00:00]} d6 {[%emt 0:00:00]} 3. d4 {[%emt 0:00:00]} cxd4 {[%emt 0:00:00]} 4. Nxd4 {[%emt 0:00:00]} Nf6 {[%emt 0:00:07]} 5. Nc3 {[%emt 0:00:00]} a6 {[%emt 0:00:13]} 6. Bg5 {[%emt 0:00:23]} e6 {[%emt 0:00:36]} 7. f4 {[%emt 0:00:13]} Qb6 {[%emt 0:00:33]} 8. Nb3 {[%emt 0:08:14]} Nbd7 {[%emt 0:01:04]} 9. Qf3 {[%emt 0:00:42]} Be7 {[%emt 0:00:25]} 10. O-O-O {[%emt 0:00:06]} Qc7 {[%emt 0:00:20]} 11. h4 {[%emt 0:28:35]} h6 {[%emt 0:03:38]} 12. Bxf6 {[%emt 0:00:26]} gxf6 {[%emt 0:00:02]} 13. Be2 {[%emt 0:05:14]} b5 {[%emt 0:07:16]} 14. Qg3 {[%emt 0:02:41]} Bf8 {[%emt 0:02:15]} 15. a3 {[%emt 0:07:55]} Bb7 {[%emt 0:04:51]} 16. Bh5 {[%emt 0:02:04]} Ke7 {[%emt 0:04:14]} 17. Rhf1 {[%emt 0:06:09]} Rc8 {[%emt 0:05:18]} 18. Nd4 {[%emt 0:08:52]} Rh7 {[%emt 0:10:07]} 19. Rd2 {[%emt 0:10:35]} Rg7 {[%emt 0:04:52]} 20. Qh3 {[%emt 0:03:02]} Qc4 {[%emt 0:07:37]} 21. Rfd1 {[%emt 0:02:32]} Nb6 {[%emt 0:02:23]} 22. Nb3 {[%emt 0:04:07]} Kd8 {[%emt 0:06:31]} 23. Na5 {[%emt 0:02:58]} Qc7 {[%emt 0:00:03]} 24. e5 {[%emt 0:03:54]} fxe5 {[%emt 0:02:03]} 25. Nxb7+ {[%emt 0:00:03]} Qxb7 {[%emt 0:00:26]} 26. fxe5 {[%emt 0:00:03]} d5 {[%emt 0:01:09]} 27. Rf2 {[%emt 0:02:20]} Qc7 {[%emt 0:03:18]} 28. Rdf1 {[%emt 0:01:41]} Qxe5 {[%emt 0:00:02]} 29. Bxf7 {[%emt 0:00:35]} Bxa3 {[%emt 0:08:07]} 30. Nd1 {[%emt 0:00:03]} Nc4 {[%emt 0:10:01]} 31. Bxe6 {[%emt 0:00:03]} Rc6 {[%emt 0:02:27]} 32. Bxd5 {[%emt 0:00:39]} Qxd5 {[%emt 0:02:28]} 33. bxa3 {[%emt 0:00:15]} Qe5 {[%emt 0:01:35]} 34. Qd3+ {[%emt 0:00:21]} Rd6 {[%emt 0:00:58]} 35. Qc3 {[%emt 0:00:11]} Qxc3 {[%emt 0:01:24]} 36. Nxc3 Nxa3 {[%emt 0:00:22]} 37. Ne4 {[%emt 0:00:39]} Rc6 {[%emt 0:00:38]} 38. Rd1+ {[%emt 0:02:01]} 1/2-1/2

[Event "GER-ch Youth U18 2020"]
[Site "Willingen"]
[Date "2020.10.23"]
[Round "6.13"]
[White "Vogt, Dustin"]
[Black "Wensing, Maximilian"]
[Result "1/2-1/2"]
[ECO "B20"]
[WhiteElo "1829"]
[BlackElo "2039"]
[Annotator "ChessBase"]
[PlyCount "62"]
[EventDate "2020.10.20"]
[EventType "swiss"]
[EventRounds "7"]
[EventCountry "GER"]
[SourceTitle "playchess.com"]
[Source "ChessBase"]
[SourceQuality "1"]
[TimeControl "40/5400+30:1800+30"]

1. e4 {[%emt 0:00:00]} c5 {[%emt 0:00:00]} 2. Ne2 {[%emt 0:00:06]} a6 {[%emt 0:02:00]} 3. g3 {[%emt 0:00:06]} b5 {[%emt 0:00:09]} 4. Bg2 {[%emt 0:00:05]} Bb7 {[%emt 0:00:05]} 5. Nbc3 {[%emt 0:00:36]} e6 {[%emt 0:00:11]} 6. O-O {[%emt 0:01:24]} Nf6 {[%emt 0:10:56]} 7. d4 {[%emt 0:00:30]} cxd4 {[%emt 0:02:19]} 8. Nxd4 {[%emt 0:00:12]} b4 {[%emt 0:02:31]} 9. e5 {[%emt 0:07:16]} Bxg2 {[%emt 0:00:15]} 10. Kxg2 {[%emt 0:00:02]} bxc3 {[%emt 0:00:31]} 11. exf6 {[%emt 0:00:08]} Qxf6 {[%emt 0:03:00]} 12. bxc3 {[%emt 0:02:18]} Nc6 {[%emt 0:12:01]} 13. Rb1 {[%emt 0:02:38]} Na5 {[%emt 0:05:27]} 14. Bf4 {[%emt 0:05:34]} d5 {[%emt 0:01:55]} 15. Re1 {[%emt 0:01:52]} Be7 {[%emt 0:07:29]} 16. Be5 {[%emt 0:02:33]} Qg6 {[%emt 0:00:14]} 17. Bc7 {[%emt 0:01:00]} Nc4 {[%emt 0:13:12]} 18. Nc6 {[%emt 0:01:52]} Qf6 {[%emt 0:03:39]} 19. Rb7 {[%emt 0:02:13]} Bc5 {[%emt 0:06:25]} 20. f4 {[%emt 0:08:44]} Qxc3 {[%emt 0:06:08]} 21. Be5 {[%emt 0:00:58]} Ne3+ {[%emt 0:02:16]} 22. Rxe3 {[%emt 0:03:58]} Qxe3 {[%emt 0:00:05]} 23. Bxg7 {[%emt 0:02:53]} Rg8 {[%emt 0:01:55]} 24. Qg4 {[%emt 0:23:43]} Qe4+ {[%emt 0:03:01]} 25. Kh3 {[%emt 0:00:58]} d4 {[%emt 0:01:38]} 26. Qh5 {[%emt 0:01:47]} Qf5+ {[%emt 0:03:46]} 27. Qxf5 {[%emt 0:00:05]} exf5 {[%emt 0:00:04]} 28. Bxd4 {[%emt 0:00:11]} Bxd4 {[%emt 0:00:07]} 29. Nxd4 {[%emt 0:00:04]} Kf8 {[%emt 0:00:15]} 30. Nxf5 {[%emt 0:04:33]} Rg6 {[%emt 0:00:24]} 31. Rc7 {[%emt 0:05:18]} Rf6 {[%emt 0:00:55]} 1/2-1/2

[Event "GER-ch Youth U18 2020"]
[Site "Willingen"]
[Date "2020.10.24"]
[Round "7.12"]
[White "Besancon, Pascal"]
[Black "Papadopoulos, Ioannis"]
[Result "0-1"]
[ECO "B02"]
[WhiteElo "1915"]
[BlackElo "2186"]
[Annotator "RC"]
[PlyCount "42"]
[EventDate "2020.10.20"]
[EventType "swiss"]
[EventRounds "7"]
[EventCountry "GER"]
[SourceTitle "playchess.com"]
[Source "ChessBase"]
[SourceQuality "1"]
[TimeControl "40/5400+30:1800+30"]

1. e4 {[%emt 0:00:00]} Nf6 {[%emt 0:00:00]} 2. Nc3 {[%emt 0:04:33]} e5 {[%emt 0:00:42]} 3. Nge2 {[%emt 0:00:08]} Nc6 {[%emt 0:00:33]} 4. g3 {[%emt 0:00:37]} d5 {[%emt 0:02:21]} 5. exd5 {[%emt 0:02:09]} Nxd5 {[%emt 0:01:36]} 6. Bg2 {[%emt 0:00:02]} Be6 {[%emt 0:00:10]} 7. d4 {[%emt 0:10:25]} Nxc3 {[%emt 0:05:41]} 8. bxc3 {[%emt 0:00:03]} Bd5 {[%emt 0:00:16]} 9. f3 {[%emt 0:08:24]} Bd6 {[%emt 0:01:13]} 10. Qd3 {[%emt 0:02:17]} f6 {[%emt 0:01:59]} 11. O-O {[%emt 0:03:00]} O-O {[%emt 0:00:51]} 12. c4 {[%emt 0:04:04]} Bf7 {[%emt 0:01:48]} 13. c3 {[%emt 0:01:19]} exd4 {[%emt 0:03:20]} 14. cxd4 {[%emt 0:02:20]} Ne5 {[%emt 0:00:35]} 15. Qe4 {[%emt 0:02:37]} Nxc4 {[%emt 0:01:04]} 16. Qxb7 {[%emt 0:01:13]} Re8 {[%emt 0:02:34]} 17. Nc3 {[%emt 0:11:39]} Rb8 {[%emt 0:01:37]} 18. Qxa7 {[%emt 0:03:24]} Bb4 {[%emt 0:00:58]} 19. Ne4 {[%emt 0:03:59]} Ra8 {[%emt 0:01:09]} 20. Qb7 {[%emt 0:00:03]} Qxd4+ {[%emt 0:00:26]} 21. Kh1 {[%emt 0:00:03]} Rab8 {[%emt 0:01:07]} 0-1